bitfinex/quotes_ETHUSD_20240707
["timestamp","ask_amount","ask_price","bid_price","bid_amount"]
[1720313308096,4.2391909,3059.0,3058.3,3.26977]
[1720313308298,0.47891909,3058.9,3058.3,3.26977]
[1720313308516,0.55,3058.8,3058.3,3.26971]
[1720313308712,0.55,3058.8,3058.3,6.5394]
[1720313308890,0.55,3058.8,3057.9,0.005]
[1720313309084,3.26937,3058.7,3058.1,3.26999]
[1720313309400,0.381937,3058.6,3058.2,3.26988]
[1720313309603,0.55,3058.8,3058.2,3.26988]
[1720313311605,0.55,3058.9,3058.2,3.26988]
[1720313313433,0.55,3058.9,3058.3,3.26978]
[1720313313592,0.55,3059.1,3058.3,3.26978]
[1720313313806,0.55,3059.1,3058.4,3.26967]
[1720313314002,0.4200709,3059.0,3058.4,3.26967]
[1720313314207,0.55,3058.9,3058.5,0.05801014]
[1720313315379,0.55,3059.1,3058.5,0.05801014]
[1720313315782,0.55,3059.1,3058.4,3.26967]
[1720313316891,0.55,3059.1,3058.5,3.32755824]
[1720313317095,0.8841369,3059.1,3058.6,3.26946]
[1720313317396,0.05690538,3059.4,3058.8,3.26917]
[1720313317583,4.49979404,3059.5,3058.8,3.26917]
[1720313317915,4.49979404,3059.5,3058.6,3.32744512]
[1720313317916,4.49979404,3059.5,3058.9,3.26913]
[1720313318314,8.24401871,3059.6,3059.0,3.26902]
[1720313318516,1.72606187,3059.5,3059.0,3.26902]
[1720313318818,1.72606187,3059.5,3059.1,0.05795759]
[1720313319186,1.72606187,3059.5,3059.0,3.26902]
[1720313319610,1.72606187,3059.5,3059.1,0.05795759]
[1720313320015,0.55,3059.4,3059.0,3.26902]
[1720313320227,1.60200806,3059.4,3059.0,3.26902]
[1720313320429,1.60200806,3059.4,3059.1,0.05795759]
[1720313320930,1.60200806,3059.4,3058.9,3.26913]
[1720313321228,0.55,3059.4,3059.0,3.26904]
[1720313321530,0.55,3059.4,3059.0,3.32700833]
[1720313323200,1.13155583,3059.3,3059.0,0.05796833]
[1720313323399,1.13155583,3059.2,3059.0,0.05796833]
[1720313323601,0.55,3059.4,3058.8,3.26919]
[1720313323857,1.35915686,3059.3,3059.1,0.05795759]
[1720313324039,1.13155067,3059.2,3058.9,3.26909]
[1720313324241,1.131555,3059.1,3059.0,3.26904]
[1720313324399,1.131555,3059.1,3059.0,3.32689657]
[1720313327041,1.72606187,3059.5,3059.1,3.26892]
[1720313327353,1.13153013,3059.4,3059.2,0.05781845]
[1720313327569,1.13153013,3059.3,3059.2,0.05781845]
[1720313330163,4.07384297,3059.3,3059.2,0.05781845]
[1720313330458,3.6765373,3059.3,3058.5,3.26956]
[1720313330661,0.55,3059.2,3058.5,3.26956]
[1720313330969,1.68169117,3059.2,3058.6,0.05570758]
[1720313331115,1.93939002,3059.1,3058.3,3.26976]
[1720313331315,1.68169117,3059.0,3058.3,3.26976]
[1720313331558,1.13169117,3058.9,3058.4,3.32540906]
[1720313331759,1.13169117,3058.9,3058.5,3.26957]
[1720313332255,1.13169117,3058.9,3058.6,0.05570758]
[1720313332421,1.38063017,3058.9,3058.6,0.05570758]
[1720313332612,1.13169117,3058.8,3058.6,0.05570758]
[1720313333458,1.13173072,3058.7,3058.6,0.05570758]
[1720313336164,1.13173072,3058.7,3058.4,3.26968]
[1720313336318,1.13173072,3058.6,3058.4,3.26968]
[1720313336523,0.55,3059.0,3058.4,3.26968]
[1720313336723,1.13172445,3058.9,3058.4,3.26968]
[1720313337035,1.68172445,3058.8,3058.4,3.26968]
[1720313337235,1.13172445,3058.7,3058.4,3.26968]
[1720313337458,1.13172445,3059.0,3058.4,3.26968]
[1720313337750,3.94222607,3058.9,3058.4,3.26968]
[1720313338054,1.68172445,3058.8,3058.4,3.26968]
[1720313338221,2.79535638,3058.7,3058.4,3.26968]
[1720313338550,1.13172445,3058.6,3058.4,3.26968]
[1720313338739,0.55,3058.8,3058.4,3.26968]
[1720313338971,2.79537616,3058.7,3058.6,3.26946]
[1720313339171,2.79535237,3058.7,3058.6,3.26946]
[1720313340069,2.79533706,3058.7,3058.6,3.26946]
[1720313340266,1.66362003,3058.7,3058.6,3.26946]
[1720313340480,4.22127146,3058.7,3058.6,3.26946]
[1720313341257,5.2440312,3058.7,3058.6,3.26946]
[1720313341748,1.02272803,3059.0,3058.6,12.813793]
[1720313341949,1.02272803,3059.3,3059.2,3.26882]
[1720313342147,1.13143354,3059.3,3059.2,6.53764]
[1720313342350,1.6632149,3059.3,3059.2,6.53764]
[1720313342586,1.02272803,3059.6,3059.5,3.2685]
[1720313342750,1.36363737,3059.7,3059.6,3.2684]
[1720313342751,1.02272803,3059.7,3059.6,3.2684]
[1720313342956,5.24245965,3059.7,3059.6,3.2684]
[1720313343462,4.21973162,3059.7,3059.6,3.2684]
[1720313343679,4.21973162,3059.7,3059.4,3.26856]
[1720313343867,5.49203217,3059.6,3059.3,3.2687]
[1720313344061,5.49203217,3059.6,3059.0,3.26902]
[1720313344062,5.24251423,3059.5,3059.0,3.26902]
[1720313344272,5.24278281,3059.4,3059.0,3.26902]
[1720313344452,4.2197862,3059.3,3059.0,3.26902]
[1720313344780,1.66301786,3059.2,3059.1,3.26893]
[1720313344957,1.66301786,3059.3,3059.1,3.26893]
[1720313345277,1.66301786,3059.2,3059.1,3.32455786]
[1720313345480,1.66322324,3059.2,3059.1,3.32455786]
[1720313345679,1.02299661,3059.4,3059.1,3.32455786]
[1720313345862,1.66320456,3059.3,3059.2,3.26882]
[1720313346192,1.66318533,3059.4,3059.3,3.26872]
[1720313346389,1.66318459,3059.4,3059.3,3.26872]
[1720313346681,4.22018326,3059.4,3059.3,3.32439513]
[1720313346855,4.22018326,3059.4,3059.3,0.05567513]
[1720313347057,5.24317987,3059.4,3059.3,0.05567513]
[1720313347264,5.24317987,3059.4,3059.1,3.26893]
[1720313347585,5.24308294,3059.3,3059.2,0.05568824]
[1720313348082,5.24308294,3059.3,3059.1,3.26893]
[1720313348291,1.66331988,3059.2,3059.1,3.26893]
[1720313349295,1.66331988,3059.2,3058.0,10.61009]
[1720313349296,5.58390863,3059.2,3058.8,3.26917]
[1720313349454,1.02245352,3059.0,3058.8,3.26917]
[1720313349659,1.66331988,3058.9,3058.8,3.26917]
[1720313349862,5.24321885,3058.9,3058.8,3.26917]
[1720313350358,5.24321885,3058.9,3058.7,3.26934]
[1720313350557,1.66331988,3058.8,3058.7,3.26934]
[1720313351486,1.66331988,3058.9,3058.8,3.26925]
[1720313351661,1.66345031,3058.9,3058.8,3.26925]
[1720313352369,1.02256675,3059.3,3059.2,3.26882]
[1720313352575,1.66324143,3059.3,3059.2,3.26882]
[1720313354276,1.66324143,3059.3,3058.9,3.26907]
[1720313354470,3.57979646,3059.2,3058.9,3.26907]
[1720313354671,1.66324143,3059.1,3058.9,3.26907]
[1720313354889,2.68580818,3059.1,3058.9,3.26907]
[1720313355099,1.66324143,3059.0,3058.9,3.26907]
[1720313356196,1.66324143,3059.0,3058.7,3.26933]
[1720313356497,1.02256675,3058.9,3058.2,2.318]
[1720313356709,1.66324143,3058.8,3058.2,2.318]
[1720313356860,1.66324143,3058.8,3058.6,3.26937]
[1720313357905,1.66324143,3058.8,3058.5,3.26956]
[1720313358118,1.66324143,3058.8,3058.7,3.26936]
[1720313358320,1.66324143,3058.8,3058.2,2.318]
[1720313358321,4.8575002,3058.8,3058.4,3.26961]
[1720313358454,1.02286182,3058.6,3058.4,3.26961]
[1720313358659,1.66324143,3058.5,3058.4,3.26961]
[1720313358892,4.11211412,3058.5,3058.4,3.26961]
[1720313359098,1.66324143,3058.5,3058.4,3.26961]
[1720313359804,1.6635964,3058.6,3058.5,3.26957]
[1720313360091,1.6635953,3058.6,3058.5,3.26957]
[1720313360791,1.6635953,3058.6,3058.5,6.53914]
[1720313360975,2.68645149,3058.7,3058.6,3.26946]
[1720313361294,2.68645149,3058.7,3058.3,3.26976]
[1720313361295,3.0914379,3058.7,3058.3,3.26976]
[1720313361507,4.11233577,3058.6,3058.3,3.26976]
[1720313361665,1.53673181,3058.7,3058.3,3.26976]
[1720313361666,1.6635887,3058.5,3058.3,3.26976]
[1720313361868,1.42774107,3058.7,3058.3,3.26976]
[1720313362067,1.66359732,3058.6,3058.3,3.26976]
[1720313362267,1.66359732,3058.6,3058.4,3.26966]
[1720313362268,2.68635101,3058.6,3058.4,3.26966]
[1720313362468,1.66359732,3058.5,3058.4,3.26966]
[1720313363390,1.02275369,3058.6,3058.5,3.26957]
[1720313363592,2.68634595,3058.6,3058.5,3.26957]
[1720313363793,1.66359226,3058.6,3058.5,6.59495556]
[1720313363975,1.02275369,3058.9,3058.6,3.26946]
[1720313364175,1.66351672,3058.8,3058.7,3.26936]
[1720313364380,1.66351672,3058.8,3058.7,3.32529874]
[1720313364599,3.08937765,3058.8,3058.7,3.32529874]
[1720313364770,4.11212839,3058.8,3058.7,3.32529874]
[1720313364965,1.66351672,3058.8,3058.7,6.59465874]
[1720313366710,1.02275369,3059.2,3059.0,3.26904]
[1720313366883,1.02275369,3059.2,3059.0,6.53808]
[1720313366884,1.66328642,3059.1,3059.0,6.53808]
[1720313367209,1.66328642,3059.1,3059.0,3.26904]
[1720313367366,4.11176252,3059.1,3059.0,3.26904]
[1720313367868,4.11176557,3059.1,3059.0,6.53808]
[1720313368070,4.11176557,3059.1,3059.0,3.26904]
[1720313368265,4.11188795,3059.1,3059.0,3.26904]
[1720313368469,1.66328642,3059.1,3059.0,3.26904]
[1720313368699,4.11189055,3059.1,3059.0,3.26904]
[1720313369974,5.24342432,3059.1,3059.0,3.26904]
[1720313370174,5.58438325,3059.1,3059.0,3.26904]
[1720313371112,5.58453574,3059.1,3059.0,3.26904]
[1720313371806,5.24399879,3059.1,3059.0,6.53808]
[1720313372015,4.11239985,3059.1,3059.0,6.53808]
[1720313372178,1.66328642,3059.1,3059.0,6.53808]
[1720313372513,5.24388262,3059.1,3059.0,6.53808]
[1720313372907,2.79483398,3059.1,3059.0,6.53808]
[1720313373112,2.68659817,3059.1,3059.0,3.26904]
[1720313373292,4.11234799,3059.1,3059.0,3.26904]
[1720313373688,5.24393576,3059.1,3059.0,3.26904]
[1720313374789,3.08903624,3059.1,3059.0,3.26904]
[1720313375118,4.2206161,3059.1,3059.0,3.26904]
[1720313375506,2.79486628,3059.1,3059.0,3.26904]
[1720313375812,4.63661697,3059.1,3059.0,3.26904]
[1720313376018,3.21080858,3059.1,3059.0,3.26904]
[1720313376218,1.66328642,3059.1,3059.0,3.26904]
[1720313376917,4.22070781,3059.1,3059.0,3.26904]
[1720313377418,1.66328642,3059.1,3059.0,3.26904]
[1720313377619,2.557405,3059.1,3059.0,3.26904]
[1720313377923,4.22069142,3059.1,3059.0,3.26904]
[1720313378520,1.66328642,3059.1,3059.0,7.24751897]
[1720313378723,7.48,3059.5,3059.3,3.26872]
[1720313378891,7.48,3059.5,3059.4,3.26861]
[1720313379093,11.70026322,3059.5,3059.4,3.32421748]
[1720313379708,13.06467129,3059.5,3059.4,3.32421748]
[1720313380029,13.06467129,3059.5,3059.4,3.26861]
[1720313380424,13.06467129,3059.5,3059.4,3.32421748]
[1720313380799,10.50763535,3059.5,3059.4,6.59282748]
[1720313383723,3.02763535,3059.5,3059.4,6.59282748]
[1720313384131,5.39633535,3059.5,3059.4,0.05560748]
[1720313384428,6.58892522,3059.5,3059.2,3.2688]
[1720313384632,4.87911774,3059.4,3059.2,3.2688]
[1720313384820,3.0274031,3059.3,3059.2,3.2688]
[1720313385002,5.58466592,3059.3,3059.2,3.2688]
[1720313388231,5.58461487,3059.3,3059.2,3.2688]
[1720313388413,5.58461487,3059.3,3059.0,3.26902]
[1720313388609,4.22043905,3059.2,3059.0,3.26902]
[1720313388799,4.22043905,3059.1,3059.0,3.26902]
[1720313389833,5.58461487,3059.1,3059.0,3.26902]
[1720313390134,5.58461487,3059.1,3059.0,3.32450922]
[1720313391136,5.58461487,3059.1,3059.0,0.05548922]
[1720313391296,5.00535814,3059.1,3059.0,0.05548922]
[1720313391626,6.71201002,3059.1,3059.0,0.05548922]
[1720313391828,2.44814637,3059.1,3058.7,3.26933]
[1720313392031,1.3650356,3058.9,3058.7,3.26933]
[1720313392228,4.2208211,3058.8,3058.7,3.26933]
[1720313392437,5.5858567,3058.8,3058.5,3.26951]
[1720313392623,1.02374842,3058.6,3058.5,3.26951]
[1720313392825,4.11289084,3058.6,3058.5,3.26951]
[1720313393031,5.24467885,3058.6,3058.5,3.26951]
[1720313393402,5.24467879,3058.6,3058.5,3.32505291]
[1720313394948,4.11283143,3058.6,3058.5,3.32505291]
[1720313395103,4.11283143,3058.6,3058.5,0.05554291]
[1720313395104,5.24456187,3058.6,3058.5,0.05554291]
[1720313395305,6.13353694,3058.6,3058.2,3.26988]
[1720313395521,5.2443875,3058.5,3058.2,3.26988]
[1720313395704,1.66322728,3058.4,3058.3,0.05579199]
[1720313396221,3.08927945,3058.4,3058.3,0.05579199]
[1720313396427,4.11273062,3058.4,3058.2,3.26988]
[1720313396622,1.66322728,3058.3,3058.2,3.26988]
[1720313401145,1.02285467,3058.4,3058.2,3.26988]
[1720313401353,1.66322728,3058.3,3058.2,3.26988]
[1720313401848,1.66322728,3058.3,3058.0,3.27479729]
[1720313402055,2.95469015,3058.3,3058.0,3.27479729]
[1720313402222,1.66322728,3058.2,3058.0,3.27479729]
[1720313402630,1.66322728,3058.2,3058.0,0.00472729]
[1720313402948,2.68608195,3058.2,3058.0,0.00472729]
[1720313403164,1.66322728,3058.1,3058.0,0.00472729]
[1720313404526,1.66322728,3058.2,3058.0,0.00472729]
[1720313404838,1.36380623,3058.4,3058.1,3.26995]
[1720313404839,1.02285467,3058.4,3058.1,3.26995]
[1720313405158,1.66386353,3058.3,3058.1,3.26995]
[1720313405457,1.66386353,3058.3,3058.2,3.26989]
[1720313406131,1.66386353,3058.4,3058.2,3.26989]
[1720313406327,1.66386353,3058.3,3058.2,3.26989]
[1720313407127,1.02285467,3058.6,3058.2,3.26989]
[1720313407334,1.66377046,3058.5,3058.4,3.26965]
[1720313407927,1.66377046,3058.6,3058.4,3.26965]
[1720313408125,1.66377046,3058.5,3058.4,3.26965]
[1720313408527,1.66377046,3058.6,3058.4,3.32579651]
[1720313408782,1.66377046,3058.5,3058.4,3.32579651]
[1720313409126,1.66377046,3058.6,3058.4,3.32579651]
[1720313409342,1.66377046,3058.5,3058.4,3.32579651]
[1720313409670,1.66377046,3058.6,3058.4,3.32579651]
[1720313410344,1.66377046,3058.5,3058.4,3.32579651]
[1720313410746,7.48,3058.8,3058.5,3.26957]
[1720313410747,8.50159605,3058.8,3058.5,3.26957]
[1720313410946,8.50159605,3058.8,3058.6,3.26946]
[1720313410947,1.66367646,3058.7,3058.6,3.26946]
[1720313411276,1.02159605,3058.9,3058.6,3.32558503]
[1720313411573,1.66360688,3058.8,3058.6,3.32558503]
[1720313412833,2.68520293,3058.8,3058.6,0.05612503]
[1720313413034,3.81695756,3058.7,3058.4,3.26967]
[1720313413236,2.79536151,3058.6,3058.4,3.26967]
[1720313413553,1.66360688,3058.5,3058.4,3.26967]
[1720313413734,1.02159605,3058.7,3058.4,3.26967]
[1720313413735,1.66360688,3058.6,3058.4,3.26967]
[1720313413935,1.66360688,3058.5,3058.4,3.26967]
[1720313414162,1.66360688,3058.6,3058.4,3.26967]
[1720313414387,1.66360688,3058.5,3058.2,3.26984]
[1720313414617,1.13180019,3058.4,3058.2,3.26984]
[1720313414899,1.02159605,3058.6,3058.2,3.26984]
[1720313415060,2.79563382,3058.5,3058.2,3.26984]
[1720313415256,1.66379756,3058.4,3058.2,3.26984]
[1720313415498,1.02159605,3058.6,3058.2,3.26984]
[1720313415721,2.79560049,3058.5,3058.2,3.26984]
[1720313416018,1.02159605,3058.8,3058.6,3.26946]
[1720313416159,7.98212807,3059.0,3058.6,3.26946]
[1720313416160,2.79532764,3058.7,3058.6,3.26946]
[1720313416361,2.79532764,3058.7,3058.4,3.26968]
[1720313416562,1.66365278,3058.6,3058.4,3.26968]
[1720313416797,1.1317572,3058.6,3058.4,3.26968]
[1720313417011,1.02159605,3058.7,3058.4,3.26968]
[1720313417193,2.79548324,3058.6,3058.4,3.26968]
[1720313417508,2.79550053,3058.5,3058.4,3.26968]
[1720313417844,2.79550053,3058.5,3058.2,3.26982]
[1720313418017,1.1317714,3058.4,3058.2,3.26982]
[1720313418163,1.1317714,3058.5,3058.2,3.26982]
[1720313419664,1.13183314,3058.4,3058.2,3.26982]
[1720313419859,1.13183314,3058.3,3058.2,3.26982]
[1720313420104,1.60050048,3058.7,3058.2,3.26982]
[1720313420105,1.36228199,3058.7,3058.3,3.26976]
[1720313420280,1.13181795,3058.6,3058.3,3.26976]
[1720313420474,1.13181795,3058.5,3058.3,3.26976]
[1720313420796,1.13181795,3058.4,3058.3,3.26976]
[1720313421274,1.13179582,3058.4,3058.3,3.26976]
[1720313421624,1.13179582,3058.4,3058.3,5.73376]
[1720313421824,1.02171149,3058.8,3058.4,3.26966]
[1720313422032,2.79539251,3058.7,3058.4,3.26966]
[1720313422323,1.13173444,3058.6,3058.4,3.26966]
[1720313422488,1.13173444,3058.7,3058.4,3.26966]
[1720313422689,1.66368515,3058.6,3058.4,3.26966]
[1720313422891,1.13173444,3058.7,3058.4,3.26966]
[1720313423124,2.7954315,3058.6,3058.4,3.26966]
[1720313423286,1.13173444,3058.5,3058.4,3.26966]
[1720313423626,2.15347696,3058.7,3058.5,0.05601003]
[1720313423782,2.79548906,3058.6,3058.4,3.32568077]
[1720313423990,2.79548906,3058.5,3058.4,3.26966]
[1720313424491,2.79548906,3058.5,3058.2,3.26982]
[1720313424691,2.79556685,3058.4,3058.2,3.26982]
[1720313424994,1.13176547,3058.3,3058.2,3.26982]
[1720313425216,1.13176547,3058.4,3058.3,3.26979]
[1720313425419,1.13181834,3058.5,3058.3,3.26979]
[1720313425624,1.13181834,3058.4,3058.3,3.26979]
[1720313426132,1.02171149,3058.6,3058.3,3.26979]
[1720313426294,2.7955248,3058.5,3058.3,3.26979]
[1720313426489,1.13178458,3058.4,3058.3,3.26979]
[1720313426704,1.02171149,3058.7,3058.6,6.53892]
[1720313426919,1.13163801,3058.8,3058.7,3.26936]
[1720313427148,2.79519342,3058.8,3058.7,3.26936]
[1720313427849,1.13163801,3058.8,3058.7,3.26936]
[1720313428039,1.13163801,3058.9,3058.8,3.26925]
[1720313428247,2.79510919,3058.9,3058.8,3.26925]
[1720313429258,2.68518267,3058.9,3058.8,3.26925]
[1720313429419,2.79509017,3058.9,3058.8,3.67295797]
[1720313429621,2.79503862,3058.9,3058.8,3.26925]
[1720313429818,2.79503935,3058.9,3058.8,3.26925]
[1720313430570,1.66347118,3058.9,3058.8,3.26925]
[1720313431278,2.79501511,3058.9,3058.8,3.26925]
[1720313431418,5.24397876,3058.9,3058.8,3.26925]
[1720313432562,2.68660264,3058.9,3058.8,3.26925]
[1720313432759,5.2439875,3058.9,3058.8,3.26925]
[1720313432962,5.24400535,3058.9,3058.8,6.5385]
[1720313433257,1.66347118,3058.9,3058.8,6.5385]
[1720313435073,1.66347118,3058.9,3058.8,8.9237]
[1720313435225,1.02313146,3059.1,3058.9,6.53828]
[1720313435226,1.66333184,3059.0,3058.9,6.53828]
[1720313435565,1.02313146,3059.4,3059.3,3.26872]
[1720313435772,3.81777539,3059.4,3059.3,3.26872]
[1720313435921,5.24338272,3059.4,3059.3,3.26872]
[1720313436127,5.24369981,3059.4,3059.3,3.26872]
[1720313436522,4.112274,3059.4,3059.3,3.26872]
[1720313436741,2.68666667,3059.4,3059.3,3.26872]
[1720313436984,1.66321812,3059.4,3059.3,3.26872]
[1720313438576,2.68668982,3059.5,3059.4,3.26861]
[1720313438734,5.24369133,3059.5,3059.4,3.26861]
[1720313439071,2.68668631,3059.5,3059.4,3.26861]
[1720313439239,1.66318855,3059.5,3059.4,3.26861]
[1720313439655,2.68668631,3059.5,3059.4,3.26861]
[1720313439830,1.66318855,3059.5,3059.4,3.26861]
[1720313442875,1.02349776,3059.6,3059.5,3.2685]
[1720313443035,3.81807154,3059.6,3059.5,3.2685]
[1720313443239,2.79457378,3059.6,3059.5,3.2685]
[1720313443468,1.66316833,3059.6,3059.5,3.2685]
[1720313443636,3.81807605,3059.6,3059.5,3.2685]
[1720313444175,2.79457829,3059.6,3059.5,3.2685]
[1720313444478,3.81806913,3059.6,3059.5,3.2685]
[1720313444977,2.79457137,3059.6,3059.5,3.32392606]
[1720313445564,1.66316833,3059.6,3059.5,3.32392606]
[1720313445766,2.79457418,3059.6,3059.5,3.32392606]
[1720313445975,1.66316833,3059.6,3059.5,3.32392606]
[1720313446144,3.81807477,3059.6,3059.5,3.32392606]
[1720313446540,2.79457701,3059.6,3059.5,3.32392606]
[1720313446767,3.81807477,3059.6,3059.5,3.32392606]
[1720313447340,2.79457701,3059.6,3059.5,3.32392606]
[1720313447564,1.66316833,3059.6,3059.5,3.32392606]
[1720313449062,4.08673167,3059.6,3059.5,0.05542606]
[1720313449263,4.08517737,3059.6,3059.5,0.05542606]
[1720313450143,5.51077935,3059.6,3059.5,0.05542606]
[1720313450343,5.51080999,3059.6,3059.5,0.05542606]
[1720313450750,5.51080999,3059.6,3059.4,3.26858]
[1720313450946,3.48194988,3059.5,3059.3,3.26872]
[1720313451170,2.79464634,3059.4,3059.3,3.26872]
[1720313451587,2.79464634,3059.4,3059.3,3.32415092]
[1720313452049,1.66316833,3059.4,3059.3,3.32415092]
[1720313452252,2.79465261,3059.4,3059.3,3.32415092]
[1720313453580,0.68733516,3059.5,3059.3,3.32415092]
[1720313453782,1.02190623,3059.6,3059.4,3.26859]
[1720313454101,1.02190623,3059.7,3059.5,3.32390656]
[1720313454249,2.79452987,3059.6,3059.5,3.32390656]
[1720313455388,1.66315034,3059.6,3059.5,3.32390656]
[1720313455680,1.13135381,3059.6,3059.5,3.32390656]
[1720313455852,2.79450415,3059.6,3059.5,3.32390656]
[1720313456590,1.13135381,3059.6,3059.5,3.32390656]
[1720313458685,8.84254164,3060.0,3059.7,3.26829]
[1720313458686,7.48,3060.0,3059.7,3.26829]
[1720313458854,1.02047881,3059.8,3059.7,3.26829]
[1720313459052,1.66311559,3059.8,3059.7,3.26829]
[1720313459272,5.24051816,3059.8,3059.7,3.3236851]
[1720313459487,3.81498972,3059.8,3059.7,3.3236851]
[1720313460152,5.24051481,3059.8,3059.7,3.3236851]
[1720313460984,6.81873287,3059.8,3059.7,0.0553951]
[1720313461287,7.15900824,3059.8,3059.6,3.26839]
[1720313461454,3.81456917,3059.7,3059.6,3.26839]
[1720313462054,3.81456917,3059.7,3059.3,3.26869]
[1720313462055,5.99029917,3059.7,3059.3,3.26869]
[1720313462284,0.953,3059.5,3059.3,3.26869]
[1720313462482,2.79453543,3059.4,3058.8,3.26915]
[1720313462787,6.19334874,3059.3,3058.9,3.26911]
[1720313463004,3.81456917,3059.2,3058.9,3.26911]
[1720313463179,2.79453543,3059.1,3058.9,3.26911]
[1720313463379,2.79453543,3059.0,3058.9,3.26911]
[1720313464351,2.79476068,3059.0,3058.9,3.26911]
[1720313467386,2.79476068,3059.0,3058.7,3.26935]
[1720313467590,1.36066575,3059.2,3058.7,3.26935]
[1720313467591,1.66311559,3058.9,3058.7,3.26935]
[1720313467901,1.66311559,3058.8,3058.7,3.26935]
[1720313468065,2.79476769,3058.8,3058.7,3.26935]
[1720313468479,2.79476769,3058.8,3058.7,3.32479794]
[1720313468982,5.24182878,3058.8,3058.7,3.32479794]
[1720313469963,3.81584963,3058.8,3058.7,3.32479794]
[1720313470273,5.24178709,3058.8,3058.7,3.32479794]
[1720313470892,5.24177661,3058.8,3058.7,3.32479794]
[1720313471197,5.24177632,3058.8,3058.7,3.32479794]
[1720313471502,3.81582917,3058.8,3058.7,3.32479794]
[1720313471700,2.68412485,3058.8,3058.7,3.32479794]
[1720313472028,1.66311559,3058.8,3058.7,6.59415794]
[1720313472328,1.66349701,3058.8,3058.7,3.32479794]
[1720313472489,1.66348167,3058.9,3058.7,3.32479794]
[1720313472685,1.66348167,3058.8,3058.7,3.32479794]
[1720313473074,5.24205567,3058.8,3058.7,3.32479794]
[1720313473275,5.24205567,3058.8,3058.7,0.05544794]
[1720313473519,5.24205567,3058.8,3058.5,3.2695]
[1720313473520,5.90239581,3058.8,3058.5,3.2695]
[1720313473830,4.11045636,3058.7,3058.6,3.26946]
[1720313473972,3.08946514,3058.7,3058.4,3.26965]
[1720313474179,2.68504825,3058.6,3058.4,3.26965]
[1720313474377,1.9319865,3058.5,3058.4,3.26965]
[1720313474726,4.11112396,3058.5,3058.4,3.26965]
[1720313475222,4.1111017,3058.5,3058.4,3.26965]
[1720313475390,4.11111714,3058.5,3058.4,3.26965]
[1720313475587,1.66348167,3058.5,3058.4,3.26965]
[1720313475788,1.66348167,3058.5,3058.2,3.26986]
[1720313476004,1.42610727,3058.4,3058.2,3.26986]
[1720313476213,1.66348167,3058.3,3058.2,3.26986]
[1720313476781,1.66377933,3058.4,3058.3,3.26979]
[1720313476981,1.6637783,3058.4,3058.3,3.26979]
[1720313477909,1.02128471,3058.7,3058.3,3.26979]
[1720313478111,1.66364429,3058.6,3058.5,3.26949]
[1720313478315,1.66364733,3058.7,3058.6,3.26946]
[1720313478622,1.66364382,3058.7,3058.6,3.26946]
[1720313478937,1.02128471,3058.9,3058.7,3.26936]
[1720313479107,1.66352797,3058.8,3058.7,3.26936]
[1720313481808,2.68430464,3058.8,3058.7,3.26936]
[1720313482185,4.11025559,3058.8,3058.7,3.26936]
[1720313482429,2.68430464,3058.8,3058.7,3.26936]
[1720313483218,1.66352797,3058.8,3058.7,3.26936]
[1720313483655,2.68362332,3058.8,3058.7,3.32521337]
[1720313484157,3.81533144,3058.8,3058.7,3.32521337]
[1720313484328,2.68362332,3058.8,3058.7,3.32521337]
[1720313484529,3.81533104,3058.8,3058.7,0.05585337]
[1720313484859,6.22285493,3058.8,3058.7,0.05585337]
[1720313485015,4.86272779,3058.8,3058.7,0.05585337]
[1720313485366,4.86272779,3058.8,3058.2,3.26986]
[1720313485367,6.22285493,3058.8,3058.2,3.26986]
[1720313485528,5.24081715,3058.7,3058.2,3.26986]
[1720313485728,1.66352797,3058.6,3058.3,3.32561128]
[1720313486057,1.66352797,3058.6,3058.3,6.59532128]
[1720313486258,2.68313238,3058.6,3058.3,6.59532128]
[1720313486425,1.59812797,3058.5,3058.3,6.59532128]
[1720313487748,1.01960441,3058.6,3058.4,3.26966]
[1720313487960,1.01960441,3058.7,3058.4,3.32550054]
[1720313488136,1.13178904,3058.6,3058.4,3.32550054]
[1720313488340,0.64151505,3058.8,3058.4,3.32550054]
[1720313488341,1.66111946,3058.8,3058.4,3.32550054]
[1720313488524,2.15136317,3058.7,3058.4,3.32550054]
[1720313488720,0.64151505,3058.8,3058.5,3.26957]
[1720313488721,1.13175876,3058.6,3058.5,3.26957]
[1720313488926,1.01960441,3058.8,3058.6,3.26946]
[1720313489234,1.13173699,3058.7,3058.6,3.26946]
[1720313490165,1.13174597,3058.7,3058.6,3.26946]
[1720313493255,1.01960441,3058.9,3058.6,3.26946]
[1720313493459,1.13169935,3058.7,3058.6,3.26946]
[1720313493775,1.01960441,3058.8,3058.7,3.26936]
[1720313494267,2.15131379,3058.8,3058.7,3.26936]
[1720313494475,3.57727176,3058.8,3058.7,3.26936]
[1720313494785,3.57727997,3058.8,3058.7,3.26936]
[1720313495598,1.13171485,3058.8,3058.6,3.26946]
[1720313495760,1.13171485,3058.8,3058.7,3.26936]
[1720313495954,1.13164468,3058.8,3058.7,3.26936]
[1720313496494,8.49960441,3059.1,3058.7,3.26936]
[1720313496662,1.13162028,3058.8,3058.7,3.26936]
[1720313496857,1.13162028,3058.8,3058.7,0.559896]
[1720313497063,14.1,3059.5,3058.8,3.26923]
[1720313497254,3.57778554,3059.4,3059.1,3.26892]
[1720313497453,3.5777616,3059.3,3059.1,3.26892]
[1720313497661,1.02052088,3059.3,3059.2,0.05574513]
[1720313497854,1.02052088,3059.3,3059.1,3.26892]
[1720313497855,3.57780968,3059.3,3059.1,3.26892]
[1720313498071,1.13154237,3059.2,3059.1,3.26892]
[1720313498472,2.15206325,3059.2,3059.1,3.32467586]
[1720313498698,3.57782702,3059.2,3059.1,3.30907586]
[1720313499077,1.13154237,3059.2,3059.1,3.30907586]
[1720313499885,1.13155425,3059.2,3059.1,3.30907586]
[1720313500366,2.55733174,3059.2,3059.1,0.05575586]
[1720313500608,2.9086087,3059.2,3059.1,0.05575586]
[1720313500768,3.92960367,3059.2,3058.9,6.53818]
[1720313501107,3.57835057,3059.1,3059.0,3.26904]
[1720313501400,1.13155425,3059.1,3059.0,3.26904]
[1720313501702,3.57834547,3059.1,3059.0,3.26904]
[1720313501907,3.57834547,3059.1,3059.0,3.25644]
[1720313502199,2.15254922,3059.1,3059.0,3.25644]
[1720313502589,3.57832952,3059.1,3059.0,3.25644]
[1720313502999,7.573,3059.5,3059.0,3.25644]
[1720313503195,1.02151012,3059.1,3058.9,3.26909]